Workbook

Sheet البدء
B1: حول هذا القالب
B2: إنشاء خطة مالية لبدء الأعمال باستخدام هذا القالب.
B3: احصل على نظرة عامة حول خطة مالية في ورقة عمل "نظرة عامة".
B4: استخدم «قالب تكاليف بدء التشغيل» وأوراق عمل «قالب الأرباح والخسائر» للاحتفاظ بحساب تكاليف بدء التشغيل والربح والخسارة.
B5: تحتوي أوراق عمل «نموذج تكاليف بدء التشغيل» و«نموذج الأرباح والخسائر» على بيانات نموذجية في جداول.
B6: ملاحظة:
B7: تم توفير إرشادات إضافية في العمود A في جميع أوراق العمل. تم إخفاء هذا النص عن قصد. لإزالة النص، حدد العمود A، ثم حدد "حذف". لإظهار النص، حدد العمود A، ثم قم بتغيير لون الخط.
B8: للتعرّف على المزيد حول الجداول، اضغط على SHIFT ثم F10 داخل جدول، وحدد الخيار "جدول"، ثم حدد "نص بديل".

Sheet نظرة عامة
B1: خطة مالية لبدء الأعمال التجارية
B2: ينطوي إنشاء خطة مالية على إجراء كل تخطيطات الأعمال معًا. بمجرد تحديد المنتج والسوق المستهدف والعملاء المستهدفين، إلى جانب الأسعار، تكون جاهزا لبدء التنبؤ بالتكاليف والمبيعات والربح. ستساعدك هذه العناصر بالإضافة إلى افتراضاتك على تقدير توقعات المبيعات. سيكون الجانب الآخر من العمل هو المصاريف التي تتوقع أن تتحملها. هذا الأمر مهم بشكل مستمر لمعرفة متى تكون شخصًا ربحيًا. من المهم أيضًا أثناء بدء العمل بشركتك، أن تكون على دراية بالمصاريف التي ستحتاجها للتمويل قبل تلقي مبيعات العملاء أو النقد المولد.
B3: تكاليف مقدرة لبدء التشغيل: يقدم الجدول الموجود في علامة التبويب التالية، علامة تبويب "قالب تكاليف بدء التشغيل"، وهو قالب فارغ يتضمن بعض الإرشادات لبدء الاستخدام. تعرض علامة التبويب التالية، «نموذج لتكاليف بدء التشغيل»، عينة من عناصر التكلفة المستمرة والتكلفة لمرة واحدة التي قد تحتاج إليها لفتح شركتك. يُدفع للعديد من الشركات النفقات كحساب مع مرور الوقت، كما أنه ليس لديها أموال متاحة على الفور. من المهم تقدير الوقت الذي سيبدأ فيه التدفق النقدي إلى الشركة بافتراض عدد أشهر العناصر المتكررة، بالإضافة إلى المصروفات لمرة واحدة، التي سيتعين عليك تمويلها من خلال المدخرات أو كاستثمار مبدئي.
B4: نموذج تقديري للأرباح والخسائر: في علامة التبويب، في تسمية «قالب الأرباح والخسائر»، ستجد قالبًا فارغًا للتنبؤ بالمبيعات ونموذج الأرباح والخسائر. تعرض علامة التبويب التالية، «نموذج الأرباح والخسائر»، عينة من التوقعات التي تتوقعها شركة صغيرة لأول 12 شهرًا من العمليات. يعرض الجزء العلوي من الجدول في كل نموذج المبيعات المقدرة والأرباح الإجمالية. هذا مكان جيد لبدء إنشاء تنبؤ المبيعات الخاص بك. يصنف القسم التالي، أدناه، المصاريف المتكررة التي تتوقعها للشهور نفسها. يجب أن تكون متناسقة مع تكاليف بدء التشغيل المقدرة التي أكملتها في القسم السابق. في أسفل هذا النموذج، ستبدأ في معرفة متى تصبح شخصًا ربحيًا وعناصر المصروفات الأكثر تأثيرًا على ربحيتك.
B5: تعقب افتراضاتك التي تقوم بإجرائها لتقدير الإيرادات وتكلفة السلع المباعة. بالنسبة للشركات التي لم تبدأ العمل بعد، يجب أن يكون لديك فهم لكيفية تقدير هذه المنتجات أو الخدمات. فيما يلي بعض إرشادات التقدير:
B6: الإيرادات: ابدأ بالتحديد من خلال السوق المستهدفة لديك (مجموعة العملاء المتوقعين أو الشركات أو العملاء)، بتحديد عدد العناصر التي ستكون أهدافًا لديك في السنة الأولى. ما النسبة المئوية للعناصر التي تتوقع الإغلاق بسببها؟ ما متوسط معاملاتهم التي يمكنهم من خلالها شراء منتجك أو خدمتك؟ ما هو عدد العناصر التي يمكنك البناء عليها في الشهر الأول والثاني وما إلى ذلك؟ قد ترغب في البدء بعدد في الشهر الأول وزيادة العدد بنسبة مئوية، لنقل 10٪. على سبيل المثال، إذا قمت ببيع خدمات التنظيف للشركات الصغيرة في بلدتك وكان هناك 500 شركة تعتقد أنها تحتاج إلى الخدمة. إذا كان متوسط العقود لديك هو 250 دولارًا أمريكيًا في الشهر، فستحتاج إلى تقدير عدد الشركات التي يمكنك توقيع عقود معها كل شهر للسنة الأولى.
B7: تكلفة البضائع المبيعة (COGS): يجب حساب هذا للمنتجات وبعض الخدمات. التكلفة المضمنة هي إنتاج المنتج. على سبيل المثال، إذا قمت ببيع الملابس، فستكون تكلفة البضائع المبيعة هي السعر الذي دفعته لشراء الملابس من الشركة المصنعة. إذا قمت بالحساب بنفسك، فسيكون الحساب على تكلفة المواد والعمل. بالنسبة للخدمات، ستكون تكلفة العمالة المباشرة لمدة ساعة من العمل المفوتر. يُصحح كل شيء ما دون الربح الشامل فيما يتعلق بالأرباح والخسائر أو التكاليف الزائدة للأعمال بشكل عام، مثل الإيجار أو الهاتف أو حتى التسويق.

Sheet قالب تكاليف بدء التشغيل
B1: تكاليف بدء التشغيل
B2: المقهى | C2: =TODAY() -> 2022-01-21
B4: عناصر التكلفة | C4: أشهر | D4: التكلفة/ الشهر | E4: تكلفة لمرة واحدة | F4: إجمالي التكلفة
B5: الإعلانات/التسويق | F5: =(C5*D5)+IF(E5>0,E5,0) -> ر.س.‏ 0
B6: رواتب الموظفين | F6: =(C6*D6)+IF(E6>0,E6,0) -> ر.س.‏ 0
B7: الضرائب والفوائد الخاصة بكشوف رواتب الموظفين | F7: ر.س.‏ 0
B8: إيجار/تأجير المبالغ/المرافق | F8: ر.س.‏ 0
B9: رسوم البريد/الشحن | F9: ر.س.‏ 0
B10: موازنة مقدرة بدء التشغيل | F10: =SUBTOTAL(109,StartUp[إجمالي التكلفة]) -> 0

Sheet نموذج تكاليف بدء التشغيل
B1: تكاليف بدء التشغيل
B2: ='قالب تكاليف بدء التشغيل'!B2 -> المقهى | C2: =TODAY() -> 2022-01-21
B4: عناصر التكلفة | C4: أشهر | D4: التكلفة/ الشهر | E4: تكلفة لمرة واحدة | F4: إجمالي التكلفة
B5: الإعلانات/التسويق | C5: 3 | D5: ر.س.‏ 300 | E5: ر.س.‏ 2,000 | F5: =(C5*D5)+IF(E5>0,E5,0) -> ر.س.‏ 2,900
B6: رواتب الموظفين | C6: 4 | D6: ر.س.‏ 3,500 | E6: ر.س.‏ 2 | F6: =(C6*D6)+IF(E6>0,E6,0) -> ر.س.‏ 14,002
B7: الضرائب والفوائد الخاصة بكشوف رواتب الموظفين | C7: 4 | D7: ر.س.‏ 500 | E7: ر.س.‏ 2,000 | F7: ر.س.‏ 4,000
B8: إيجار/تأجير المبالغ/المرافق | C8: 4 | D8: ر.س.‏ 750 | E8: ر.س.‏ 3,000 | F8: ر.س.‏ 6,000
B9: رسوم البريد/الشحن | C9: 1 | D9: ر.س.‏ 25 | E9: ر.س.‏ 25 | F9: ر.س.‏ 50
B10: موازنة مقدرة بدء التشغيل | F10: =SUM(F6:F9) -> ر.س.‏ 24,052

Sheet قالب الأرباح والخسائر
B1: تكاليف بدء التشغيل
B2: ='قالب تكاليف بدء التشغيل'!B2 -> المقهى | C2: =TODAY() -> 2022-01-21
B4: الإيرادات | C4: يناير | D4: فبراير | E4: مارس | F4: أبريل | G4: مايو | H4: يونيو | I4: يوليو | J4: أغسطس | K4: سبتمبر | L4: أكتوبر | M4: نوفمبر | N4: ديسمبر | O4: السنة حتى تاريخه
B5: مبيعات المنتجات المقدرة | C5: ر.س.‏ 0 | D5: ر.س.‏ 0 | E5: ر.س.‏ 0 | F5: ر.س.‏ 0 | G5: ر.س.‏ 0 | H5: ر.س.‏ 0 | I5: ر.س.‏ 0 | J5: ر.س.‏ 0 | K5: ر.س.‏ 0 | L5: ر.س.‏ 0 | M5: ر.س.‏ 0 | N5: ر.س.‏ 0 | O5: =SUM(C5:N5) -> ر.س.‏ 0
B6: خصومات وإرجاع مبيعات أقل | C6: ر.س.‏ 0 | D6: ر.س.‏ 0 | E6: ر.س.‏ 0 | F6: ر.س.‏ 0 | G6: ر.س.‏ 0 | H6: ر.س.‏ 0 | I6: ر.س.‏ 0 | J6: ر.س.‏ 0 | K6: ر.س.‏ 0 | L6: ر.س.‏ 0 | M6: ر.س.‏ 0 | N6: ر.س.‏ 0 | O6: =SUM(C6:N6) -> ر.س.‏ 0
B7: إيرادات الخدمة | C7: ر.س.‏ 0 | D7: ر.س.‏ 0 | E7: ر.س.‏ 0 | F7: ر.س.‏ 0 | G7: ر.س.‏ 0 | H7: ر.س.‏ 0 | I7: ر.س.‏ 0 | J7: ر.س.‏ 0 | K7: ر.س.‏ 0 | L7: ر.س.‏ 0 | M7: ر.س.‏ 0 | N7: ر.س.‏ 0 | O7: ر.س.‏ 0
B8: الإيرادات الأخرى | C8: ر.س.‏ 0 | D8: ر.س.‏ 0 | E8: ر.س.‏ 0 | F8: ر.س.‏ 0 | G8: ر.س.‏ 0 | H8: ر.س.‏ 0 | I8: ر.س.‏ 0 | J8: ر.س.‏ 0 | K8: ر.س.‏ 0 | L8: ر.س.‏ 0 | M8: ر.س.‏ 0 | N8: ر.س.‏ 0 | O8: ر.س.‏ 0
B9: صافي المبيعات | C9: =SUBTOTAL(109,SampleRevenue[يناير]) -> ر.س.‏ 0 | D9: =SUBTOTAL(109,SampleRevenue[فبراير]) -> ر.س.‏ 0 | E9: =SUBTOTAL(109,SampleRevenue[مارس]) -> ر.س.‏ 0 | F9: =SUBTOTAL(109,SampleRevenue[أبريل]) -> ر.س.‏ 0 | G9: =SUBTOTAL(109,SampleRevenue[مايو]) -> ر.س.‏ 0 | H9: =SUBTOTAL(109,SampleRevenue[يونيو]) -> ر.س.‏ 0 | I9: =SUBTOTAL(109,SampleRevenue[يوليو]) -> ر.س.‏ 0 | J9: =SUBTOTAL(109,SampleRevenue[أغسطس]) -> ر.س.‏ 0 | K9: =SUBTOTAL(109,SampleRevenue[سبتمبر]) -> ر.س.‏ 0 | L9: =SUBTOTAL(109,SampleRevenue[أكتوبر]) -> ر.س.‏ 0 | M9: =SUBTOTAL(109,SampleRevenue[نوفمبر]) -> ر.س.‏ 0 | N9: =SUBTOTAL(109,SampleRevenue[ديسمبر]) -> ر.س.‏ 0 | O9: =SUM(SampleRevenue[[#Totals],[يناير]:[ديسمبر]]) -> ر.س.‏ 0
B10: تكلفة البضائع المباعة | C10: =C5*0.4 -> ر.س.‏ 0 | D10: ر.س.‏ 0 | E10: ر.س.‏ 0 | F10: ر.س.‏ 0 | G10: ر.س.‏ 0 | H10: ر.س.‏ 0 | I10: ر.س.‏ 0 | J10: ر.س.‏ 0 | K10: ر.س.‏ 0 | L10: ر.س.‏ 0 | M10: ر.س.‏ 0 | N10: ر.س.‏ 0 | O10: ر.س.‏ 0
B11: إجمالي الربح | C11: =IFERROR(SampleRevenue[[#Totals],[يناير]]-C10,"") -> ر.س.‏ 0 | D11: =IFERROR(SampleRevenue[[#Totals],[فبراير]]-D10,"") -> ر.س.‏ 0 | E11: =IFERROR(SampleRevenue[[#Totals],[مارس]]-E10,"") -> ر.س.‏ 0 | F11: =IFERROR(SampleRevenue[[#Totals],[أبريل]]-F10,"") -> ر.س.‏ 0 | G11: =IFERROR(SampleRevenue[[#Totals],[مايو]]-G10,"") -> ر.س.‏ 0 | H11: =IFERROR(SampleRevenue[[#Totals],[يونيو]]-H10,"") -> ر.س.‏ 0 | I11: =IFERROR(SampleRevenue[[#Totals],[يوليو]]-I10,"") -> ر.س.‏ 0 | J11: =IFERROR(SampleRevenue[[#Totals],[أغسطس]]-J10,"") -> ر.س.‏ 0 | K11: =IFERROR(SampleRevenue[[#Totals],[سبتمبر]]-K10,"") -> ر.س.‏ 0 | L11: =IFERROR(SampleRevenue[[#Totals],[أكتوبر]]-L10,"") -> ر.س.‏ 0 | M11: =IFERROR(SampleRevenue[[#Totals],[نوفمبر]]-M10,"") -> ر.س.‏ 0 | N11: =IFERROR(SampleRevenue[[#Totals],[ديسمبر]]-N10,"") -> ر.س.‏ 0 | O11: ر.س.‏ 0
B13: المصاريف | C13: يناير | D13: فبراير | E13: مارس | F13: أبريل | G13: مايو | H13: يونيو | I13: يوليو | J13: أغسطس | K13: سبتمبر | L13: أكتوبر | M13: نوفمبر | N13: ديسمبر | O13: السنة حتى تاريخه
B14: الرواتب والأجور | C14: ر.س.‏ 0 | D14: ر.س.‏ 0 | E14: ر.س.‏ 0 | F14: ر.س.‏ 0 | G14: ر.س.‏ 0 | H14: ر.س.‏ 0 | I14: ر.س.‏ 0 | J14: ر.س.‏ 0 | K14: ر.س.‏ 0 | L14: ر.س.‏ 0 | M14: ر.س.‏ 0 | N14: ر.س.‏ 0 | O14: =SUM(C14:N14) -> ر.س.‏ 0
B15: التسويق/الإعلانات | C15: ر.س.‏ 0 | D15: ر.س.‏ 0 | E15: ر.س.‏ 0 | F15: ر.س.‏ 0 | G15: ر.س.‏ 0 | H15: ر.س.‏ 0 | I15: ر.س.‏ 0 | J15: ر.س.‏ 0 | K15: ر.س.‏ 0 | L15: ر.س.‏ 0 | M15: ر.س.‏ 0 | N15: ر.س.‏ 0 | O15: =SUM(C15:N15) -> ر.س.‏ 0
B16: عمولات المبيعات | C16: ر.س.‏ 0 | D16: ر.س.‏ 0 | E16: ر.س.‏ 0 | F16: ر.س.‏ 0 | G16: ر.س.‏ 0 | H16: ر.س.‏ 0 | I16: ر.س.‏ 0 | J16: ر.س.‏ 0 | K16: ر.س.‏ 0 | L16: ر.س.‏ 0 | M16: ر.س.‏ 0 | N16: ر.س.‏ 0 | O16: ر.س.‏ 0
B17: الإيجار | C17: ر.س.‏ 0 | D17: ر.س.‏ 0 | E17: ر.س.‏ 0 | F17: ر.س.‏ 0 | G17: ر.س.‏ 0 | H17: ر.س.‏ 0 | I17: ر.س.‏ 0 | J17: ر.س.‏ 0 | K17: ر.س.‏ 0 | L17: ر.س.‏ 0 | M17: ر.س.‏ 0 | N17: ر.س.‏ 0 | O17: ر.س.‏ 0
B18: أخرى 1 | C18: ر.س.‏ 0 | D18: ر.س.‏ 0 | E18: ر.س.‏ 0 | F18: ر.س.‏ 0 | G18: ر.س.‏ 0 | H18: ر.س.‏ 0 | I18: ر.س.‏ 0 | J18: ر.س.‏ 0 | K18: ر.س.‏ 0 | L18: ر.س.‏ 0 | M18: ر.س.‏ 0 | N18: ر.س.‏ 0 | O18: ر.س.‏ 0
B19: إجمالي المصاريف | C19: =IF(SUM(C14:C18)=0,"",SUM(C14:C18)) ->  | O19: =SUM(SampleExpenses[[#Totals],[يناير]:[ديسمبر]]) -> ر.س.‏ 0
B20: الدخل قبل الضرائب | C20: =IFERROR('قالب الأرباح والخسائر'!$C$11-SampleExpenses[[#Totals],[يناير]],"") ->  | D20: =IFERROR('قالب الأرباح والخسائر'!$C$11-SampleExpenses[[#Totals],[فبراير]],"") ->  | E20: =IFERROR('قالب الأرباح والخسائر'!$C$11-SampleExpenses[[#Totals],[مارس]],"") ->  | F20: =IFERROR('قالب الأرباح والخسائر'!$C$11-SampleExpenses[[#Totals],[أبريل]],"") ->  | G20: =IFERROR('قالب الأرباح والخسائر'!$C$11-SampleExpenses[[#Totals],[مايو]],"") ->  | H20: =IFERROR('قالب الأرباح والخسائر'!$C$11-SampleExpenses[[#Totals],[يونيو]],"") ->  | I20: =IFERROR('قالب الأرباح والخسائر'!$C$11-SampleExpenses[[#Totals],[يوليو]],"") ->  | J20: =IFERROR('قالب الأرباح والخسائر'!$C$11-SampleExpenses[[#Totals],[أغسطس]],"") ->  | K20: =IFERROR('قالب الأرباح والخسائر'!$C$11-SampleExpenses[[#Totals],[سبتمبر]],"") ->  | L20: =IFERROR('قالب الأرباح والخسائر'!$C$11-SampleExpenses[[#Totals],[أكتوبر]],"") ->  | M20: =IFERROR('قالب الأرباح والخسائر'!$C$11-SampleExpenses[[#Totals],[نوفمبر]],"") ->  | N20: =IFERROR('قالب الأرباح والخسائر'!$C$11-SampleExpenses[[#Totals],[ديسمبر]],"") ->  | O20: ر.س.‏ 0
B21: مصاريف ضريبة الدخل | C21: =IFERROR(C20*0.15," ") ->  | D21: =IFERROR(D20*0.15," ") ->  | E21: =IFERROR(E20*0.15," ") ->  | O21: =SUM('قالب الأرباح والخسائر'!$C$21:$N$21) -> ر.س.‏ 0
B23: صافي الدخل | C23: =IFERROR(C20-'قالب الأرباح والخسائر'!$C$21,"") ->  | D23: =IFERROR(D20-'قالب الأرباح والخسائر'!$D$21,"") ->  | E23: =IFERROR(E20-'قالب الأرباح والخسائر'!$E$21,"") ->  | F23: =IFERROR(F20-'قالب الأرباح والخسائر'!$F$21,"") ->  | G23: =IFERROR(G20-'قالب الأرباح والخسائر'!$G$21,"") ->  | H23: =IFERROR(H20-'قالب الأرباح والخسائر'!$H$21,"") ->  | I23: =IFERROR(I20-'قالب الأرباح والخسائر'!$I$21,"") ->  | J23: =IFERROR(J20-'قالب الأرباح والخسائر'!$J$21,"") ->  | K23: =IFERROR(K20-'قالب الأرباح والخسائر'!$K$21,"") ->  | L23: =IFERROR(L20-'قالب الأرباح والخسائر'!$L$21,"") ->  | M23: =IFERROR(M20-'قالب الأرباح والخسائر'!$M$21,"") ->  | N23: =IFERROR(N20-'قالب الأرباح والخسائر'!$N$21,"") ->  | O23: =IFERROR(O20-'قالب الأرباح والخسائر'!$O$21,"") -> ر.س.‏ 0

Sheet نموذج الأرباح والخسائر
B1: تكاليف بدء التشغيل
B2: ='قالب تكاليف بدء التشغيل'!B2 -> المقهى | C2: =TODAY() -> 2022-01-21
B4: الإيرادات | C4: يناير | D4: فبراير | E4: مارس | F4: أبريل | G4: مايو | H4: يونيو | I4: يوليو | J4: أغسطس | K4: سبتمبر | L4: أكتوبر | M4: نوفمبر | N4: ديسمبر | O4: السنة حتى تاريخه
B5: مبيعات المنتجات المقدرة | C5: ر.س.‏ 5,000 | D5: ر.س.‏ 13,000 | E5: ر.س.‏ 16,000 | F5: ر.س.‏ 7,000 | G5: ر.س.‏ 14,500 | H5: ر.س.‏ 16,400 | I5: ر.س.‏ 22,500 | J5: ر.س.‏ 23,125 | K5: ر.س.‏ 24,549 | L5: ر.س.‏ 22,000 | M5: ر.س.‏ 25,000 | N5: ر.س.‏ 27,349 | O5: =SUM(C5:N5) -> ر.س.‏ 216,423
B6: خصومات وإرجاع مبيعات أقل | C6: ر.س.‏ 0 | D6: ر.س.‏ 350- | E6: ر.س.‏ 0 | F6: ر.س.‏ 206- | G6: ر.س.‏ 234- | H6: ر.س.‏ 0 | I6: ر.س.‏ 0 | J6: ر.س.‏ 280- | K6: ر.س.‏ 1,200- | L6: ر.س.‏ 1,600- | M6: ر.س.‏ 0 | N6: ر.س.‏ 2,400- | O6: =SUM(C6:N6) -> ر.س.‏ 6,270-
B7: إيرادات الخدمة | C7: ر.س.‏ 0 | D7: ر.س.‏ 0 | E7: ر.س.‏ 0 | F7: ر.س.‏ 0 | G7: ر.س.‏ 0 | H7: ر.س.‏ 250 | I7: ر.س.‏ 350 | J7: ر.س.‏ 100 | K7: ر.س.‏ 0 | L7: ر.س.‏ 0 | M7: ر.س.‏ 1,245 | N7: ر.س.‏ 1,360 | O7: ر.س.‏ 3,305
B8: الإيرادات الأخرى | C8: ر.س.‏ 0 | D8: ر.س.‏ 0 | E8: ر.س.‏ 0 | F8: ر.س.‏ 0 | G8: ر.س.‏ 0 | H8: ر.س.‏ 0 | I8: ر.س.‏ 0 | J8: ر.س.‏ 1,500 | K8: ر.س.‏ 0 | L8: ر.س.‏ 0 | M8: ر.س.‏ 0 | N8: ر.س.‏ 0 | O8: ر.س.‏ 1,500
B9: صافي المبيعات | C9: =SUBTOTAL(109,ActualRevenue[يناير]) -> ر.س.‏ 5,000 | D9: =SUBTOTAL(109,ActualRevenue[فبراير]) -> ر.س.‏ 12,650 | E9: =SUBTOTAL(109,ActualRevenue[مارس]) -> ر.س.‏ 16,000 | F9: =SUBTOTAL(109,ActualRevenue[أبريل]) -> ر.س.‏ 6,794 | G9: =SUBTOTAL(109,ActualRevenue[مايو]) -> ر.س.‏ 14,266 | H9: =SUBTOTAL(109,ActualRevenue[يونيو]) -> ر.س.‏ 16,650 | I9: =SUBTOTAL(109,ActualRevenue[يوليو]) -> ر.س.‏ 22,850 | J9: =SUBTOTAL(109,ActualRevenue[أغسطس]) -> ر.س.‏ 24,445 | K9: =SUBTOTAL(109,ActualRevenue[سبتمبر]) -> ر.س.‏ 23,349 | L9: =SUBTOTAL(109,ActualRevenue[أكتوبر]) -> ر.س.‏ 20,400 | M9: =SUBTOTAL(109,ActualRevenue[نوفمبر]) -> ر.س.‏ 26,245 | N9: =SUBTOTAL(109,ActualRevenue[ديسمبر]) -> ر.س.‏ 26,309 | O9: =SUM(ActualRevenue[[#Totals],[يناير]:[ديسمبر]]) -> ر.س.‏ 214,958
B10: تكلفة البضائع المباعة | C10: =C5*0.4 -> ر.س.‏ 2,000 | D10: ر.س.‏ 5,200 | E10: ر.س.‏ 6,400 | F10: ر.س.‏ 2,800 | G10: ر.س.‏ 5,800 | H10: ر.س.‏ 6,560 | I10: ر.س.‏ 9,000 | J10: ر.س.‏ 9,250 | K10: ر.س.‏ 9,820 | L10: ر.س.‏ 8,800 | M10: ر.س.‏ 10,000 | N10: ر.س.‏ 10,940 | O10: ر.س.‏ 86,569
B11: إجمالي الربح | C11: =IFERROR(ActualRevenue[[#Totals],[يناير]]-C10,"") -> ر.س.‏ 3,000 | D11: =IFERROR(ActualRevenue[[#Totals],[فبراير]]-D10,"") -> ر.س.‏ 7,450 | E11: =IFERROR(ActualRevenue[[#Totals],[مارس]]-E10,"") -> ر.س.‏ 9,600 | F11: =IFERROR(ActualRevenue[[#Totals],[أبريل]]-F10,"") -> ر.س.‏ 3,994 | G11: =IFERROR(ActualRevenue[[#Totals],[مايو]]-G10,"") -> ر.س.‏ 8,466 | H11: =IFERROR(ActualRevenue[[#Totals],[يونيو]]-H10,"") -> ر.س.‏ 10,090 | I11: =IFERROR(ActualRevenue[[#Totals],[يوليو]]-I10,"") -> ر.س.‏ 13,850 | J11: =IFERROR(ActualRevenue[[#Totals],[أغسطس]]-J10,"") -> ر.س.‏ 15,195 | K11: =IFERROR(ActualRevenue[[#Totals],[سبتمبر]]-K10,"") -> ر.س.‏ 13,529 | L11: =IFERROR(ActualRevenue[[#Totals],[أكتوبر]]-L10,"") -> ر.س.‏ 11,600 | M11: =IFERROR(ActualRevenue[[#Totals],[نوفمبر]]-M10,"") -> ر.س.‏ 16,245 | N11: =IFERROR(ActualRevenue[[#Totals],[ديسمبر]]-N10,"") -> ر.س.‏ 15,369 | O11: ر.س.‏ 128,389
B13: المصاريف | C13: يناير | D13: فبراير | E13: مارس | F13: أبريل | G13: مايو | H13: يونيو | I13: يوليو | J13: أغسطس | K13: سبتمبر | L13: أكتوبر | M13: نوفمبر | N13: ديسمبر | O13: السنة حتى تاريخه
B14: الرواتب والأجور | C14: ر.س.‏ 2,500 | D14: ر.س.‏ 2,500 | E14: ر.س.‏ 3,500 | F14: ر.س.‏ 5,000 | G14: ر.س.‏ 5,000 | H14: ر.س.‏ 5,000 | I14: ر.س.‏ 8,000 | J14: ر.س.‏ 9,000 | K14: ر.س.‏ 9,000 | L14: ر.س.‏ 9,000 | M14: ر.س.‏ 9,000 | N14: ر.س.‏ 9,000 | O14: =SUM(C14:N14) -> ر.س.‏ 76,500
B15: التسويق/الإعلانات | C15: ر.س.‏ 400 | D15: ر.س.‏ 450 | E15: ر.س.‏ 450 | F15: ر.س.‏ 450 | G15: ر.س.‏ 900 | H15: ر.س.‏ 900 | I15: ر.س.‏ 900 | J15: ر.س.‏ 900 | K15: ر.س.‏ 900 | L15: ر.س.‏ 900 | M15: ر.س.‏ 1,200 | N15: ر.س.‏ 1,200 | O15: =SUM(C15:N15) -> ر.س.‏ 9,550
B16: عمولات المبيعات | C16: ر.س.‏ 250 | D16: ر.س.‏ 650 | E16: ر.س.‏ 800 | F16: ر.س.‏ 350 | G16: ر.س.‏ 725 | H16: ر.س.‏ 820 | I16: ر.س.‏ 1,125 | J16: ر.س.‏ 1,156 | K16: ر.س.‏ 1,227 | L16: ر.س.‏ 1,100 | M16: ر.س.‏ 1,250 | N16: ر.س.‏ 1,367 | O16: ر.س.‏ 10,821
B17: الإيجار | C17: ر.س.‏ 1,250 | D17: ر.س.‏ 1,250 | E17: ر.س.‏ 1,250 | F17: ر.س.‏ 1,250 | G17: ر.س.‏ 1,250 | H17: ر.س.‏ 1,250 | I17: ر.س.‏ 1,250 | J17: ر.س.‏ 1,250 | K17: ر.س.‏ 1,250 | L17: ر.س.‏ 1,250 | M17: ر.س.‏ 1,250 | N17: ر.س.‏ 1,250 | O17: ر.س.‏ 15,000
B18: إجمالي المصاريف | C18: =IF(SUM(C14:C17)=0,"",SUM(C14:C17)) -> ر.س.‏ 4,400 | D18: ر.س.‏ 4,850 | E18: ر.س.‏ 6,000 | F18: ر.س.‏ 7,050 | G18: ر.س.‏ 7,875 | H18: ر.س.‏ 7,970 | I18: ر.س.‏ 11,275 | J18: ر.س.‏ 12,306 | K18: ر.س.‏ 12,377 | L18: ر.س.‏ 12,250 | M18: ر.س.‏ 12,700 | N18: ر.س.‏ 12,817 | O18: =SUM(ActualExpenses[[#Totals],[يناير]:[ديسمبر]]) -> ر.س.‏ 111,871
B19: الدخل قبل الضرائب | C19: =IFERROR('نموذج الأرباح والخسائر'!$C$11-ActualExpenses[[#Totals],[يناير]],"") -> ر.س.‏ 1,400- | D19: =IFERROR('نموذج الأرباح والخسائر'!$D$11-ActualExpenses[[#Totals],[فبراير]],"") -> ر.س.‏ 2,600 | E19: =IFERROR('نموذج الأرباح والخسائر'!$E$11-ActualExpenses[[#Totals],[مارس]],"") -> ر.س.‏ 3,600 | F19: =IFERROR('نموذج الأرباح والخسائر'!$F$11-ActualExpenses[[#Totals],[أبريل]],"") -> ر.س.‏ 3,056- | G19: =IFERROR('نموذج الأرباح والخسائر'!$G$11-ActualExpenses[[#Totals],[مايو]],"") -> ر.س.‏ 591 | H19: =IFERROR('نموذج الأرباح والخسائر'!$H$11-ActualExpenses[[#Totals],[يونيو]],"") -> ر.س.‏ 2,120 | I19: =IFERROR('نموذج الأرباح والخسائر'!$I$11-ActualExpenses[[#Totals],[يوليو]],"") -> ر.س.‏ 2,575 | J19: =IFERROR('نموذج الأرباح والخسائر'!$J$11-ActualExpenses[[#Totals],[أغسطس]],"") -> ر.س.‏ 2,889 | K19: =IFERROR('نموذج الأرباح والخسائر'!$K$11-ActualExpenses[[#Totals],[سبتمبر]],"") -> ر.س.‏ 1,152 | L19: =IFERROR('نموذج الأرباح والخسائر'!$L$11-ActualExpenses[[#Totals],[أكتوبر]],"") -> ر.س.‏ 650- | M19: =IFERROR('نموذج الأرباح والخسائر'!$M$11-ActualExpenses[[#Totals],[نوفمبر]],"") -> ر.س.‏ 3,545 | N19: =IFERROR('نموذج الأرباح والخسائر'!$N$11-ActualExpenses[[#Totals],[ديسمبر]],"") -> ر.س.‏ 2,552 | O19: =SUM(C19:N19) -> ر.س.‏ 16,518
B20: مصاريف ضريبة الدخل | C20: =C19*0.15 -> ر.س.‏ 210- | D20: ر.س.‏ 390 | E20: =E19*0.15 -> ر.س.‏ 540 | F20: =F19*0.15 -> ر.س.‏ 458- | G20: =G19*0.15 -> ر.س.‏ 89 | H20: =H19*0.15 -> ر.س.‏ 318 | I20: =I19*0.15 -> ر.س.‏ 386 | J20: =J19*0.15 -> ر.س.‏ 433 | K20: =K19*0.15 -> ر.س.‏ 173 | L20: =L19*0.15 -> ر.س.‏ 98- | M20: =M19*0.15 -> ر.س.‏ 532 | N20: =N19*0.15 -> ر.س.‏ 383 | O20: =SUM('نموذج الأرباح والخسائر'!$C$20:$N$20) -> ر.س.‏ 2,478
B22: صافي الدخل | C22: =IFERROR(C19-'نموذج الأرباح والخسائر'!$C$20," ") -> ر.س.‏ 1,190- | D22: =IFERROR(D19-'نموذج الأرباح والخسائر'!$D$20," ") -> ر.س.‏ 2,210 | E22: =IFERROR(E19-'نموذج الأرباح والخسائر'!$E$20,"") -> ر.س.‏ 3,060 | F22: =IFERROR(F19-'نموذج الأرباح والخسائر'!$F$20,"") -> ر.س.‏ 2,598- | G22: =IFERROR(G19-'نموذج الأرباح والخسائر'!$G$20,"") -> ر.س.‏ 502 | H22: =IFERROR(H19-'نموذج الأرباح والخسائر'!$H$20,"") -> ر.س.‏ 1,802 | I22: =IFERROR(I19-'نموذج الأرباح والخسائر'!$I$20,"") -> ر.س.‏ 2,189 | J22: =IFERROR(J19-'نموذج الأرباح والخسائر'!$J$20,"") -> ر.س.‏ 2,455 | K22: =IFERROR(K19-'نموذج الأرباح والخسائر'!$K$20,"") -> ر.س.‏ 979 | L22: =IFERROR(L19-'نموذج الأرباح والخسائر'!$L$20,"") -> ر.س.‏ 553- | M22: =IFERROR(M19-'نموذج الأرباح والخسائر'!$M$20,"") -> ر.س.‏ 3,013 | N22: =IFERROR(N19-'نموذج الأرباح والخسائر'!$N$20,"") -> ر.س.‏ 2,169 | O22: =IFERROR(O19-'نموذج الأرباح والخسائر'!$O$20,"") -> ر.س.‏ 14,040
